[Event "57th Biel Festival MTO 2024"]
[White "Borner,Daniel"]
[Black "Vantika Agrawal"]
[Site "Biel"]
[Round "1.34"]
[Annotator "TA"]
[Result "0-1"]
[Date "2024.07.15"]
[WhiteElo "2075"]
[BlackElo "2390"]
[PlyCount "62"]
[TimeControl "60"]

{[%evp 19,62,0,0,-4,13,2,0,-59,-70,-144,-88,-175,-175,-154,-131,-185,-204,-228,-214,-221,-219,-225,-228,-337,-310,-348,-375,-363,-349,-366,-364,-393,-386,-447,-447,-466,-498,-493,-491,-469,-261,-491,-491,-471,-472]} 1. e4 {[%emt 0:0:3]} c5 {[%emt 0:0:22]} 2. Nf3 {[%emt 0:0:10]} d6 {[%emt 0:0:9]} 3. d4 {[%emt 0:0:38]} cxd4 {[%emt 0:0:8]} 4. Nxd4 {[%emt 0:0:2]} Nf6 {[%emt 0:0:8]} 5. Nc3 {[%emt 0:0:10]} a6 {[%emt 0:0:8]} 6. Bc4 {[%emt 0:2:57]} e6 {[%emt 0:1:39]} 7. Bb3 {[%emt 0:1:37]} b5 {[%emt 0:2:59]} 8. f3 {[%emt 0:0:55]} Be7 {[%emt 0:4:15]} 9. Be3 {[%emt 0:0:28]} O-O {[%emt 0:2:59]} 10. Qd2 {[%emt 0:0:21]} Bb7 {[%emt 0:7:23]} 11. O-O-O {[%emt 0:2:11]} Nbd7 {[%emt 0:12:29]} 12. g4 {[%emt 0:0:53]} Nc5 {[%emt 0:18:52]} 13. h4 {[%emt 0:3:20]} (13. g5 $11 Nfd7 14. h4 )b4 $15 {[%emt 0:7:48]} 14. Nce2 {[%emt 0:10:15] [#]} (14. Na4 $15 )a5 {[%emt 0:3:38]} (14... d5 $142 $1 15. g5 (15. Qxb4 $2 Nd3+ 16. cxd3 Bxb4 $19 )Nh5 )15. Kb1 {[%emt 0:10:36]} (15. Bc4 $17 {keeps fighting.} )Nfd7 $19 {[%emt 0:14:22][%cal Od7e5]} 16. Bc4 {[%emt 0:5:40] [#]} Ne5 $1 {[%emt 0:3:6]} 17. Bd3 {[%emt 0:0:30]} (17. Bb5 $17 )d5 $1 {[%emt 0:3:33][%cal Rd5e4]} (17... Bxh4 18. g5 Ng6 19. Rdg1 $15 )18. exd5 {[%emt 0:3:50]} Ncxd3 {[%emt 0:1:35]} (18... Qxd5 19. Nf4 Qd8 20. Be2 $17 )19. cxd3 {[%emt 0:0:51]} Qxd5 {[%emt 0:2:16][%cal Oa5a4]} (19... Bxh4 20. g5 (20. dxe6 Bxf3 21. Nxf3 Nxf3 $15 )Ng6 21. dxe6 $14 )20. Nf4 {[%emt 0:5:24]} Qd7 {[%emt 0:0:28]} (20... Nxf3 21. Qf2 Qd6 22. Nxf3 $11 )21. Qf2 {[%emt 0:1:37]} (21. Rhf1 $142 )Nxg4 {[%emt 0:4:2]} 22. fxg4 {[%emt 0:3:23]} Bxh1 {[%emt 0:0:6]} 23. Rxh1 {[%emt 0:0:22]} e5 $1 {[%emt 0:0:19][%csl LRd4,LRf4,LRg4]} 24. Nf5 {[%emt 0:3:42]} exf4 {[%emt 0:0:15]} 25. Bd4 {[%emt 0:1:20]} Rfd8 {[%emt 0:2:7]} 26. Qxf4 {[%emt 0:4:22]} Bf6 {[%emt 0:4:43]} 27. Bxf6 {[%emt 0:32:41]} Qxd3+ {[%emt 0:0:9]} (27... gxf6 $2 28. Rd1 Qa4 29. Rc1 $18 )28. Ka1 {[%emt 0:0:33] [#] Black must now prevent Ne7+.} Qd1+ $3 {[%emt 0:0:24][%mdl 512]} 29. Qc1 {[%emt 0:0:11]} Qxc1+ {[%emt 0:0:5]} (29... Qxg4 $2 {loses.} 30. Nh6+ (30. Bxd8 Qxf5 31. Qd2 Rc8 $18 )(30. Nxg7 Rac8 $18 )gxh6 31. Rg1 $18 )30. Rxc1 {[%emt 0:0:2]} gxf6 {[%emt 0:0:6]} 31. Kb1 {[%emt 0:0:48]} Kf8 {[%emt 0:0:44] Weighted Error Value: White=0.32/Black=0.04 (flawless) .  Mistake:       	White=5     	Black=1      Inaccurate:     	White=1     	---        OK:         	White=2     	Black=17     Best:        	White=2     	Black=1      Strong:       	---       	Black=1} 0-1

[Event "57th Biel Festival MTO 2024"]
[White "Thavandiran,Shiyam"]
[Black "Fronda,Jan Jodilyn"]
[Site "Biel"]
[Round "1.35"]
[Annotator "RC"]
[Result "1-0"]
[Date "2024.07.15"]
[WhiteElo "2387"]
[BlackElo "2072"]
[PlyCount "115"]
[TimeControl "60"]

1. e4 {[%emt 0:0:30]} c5 {[%emt 0:1:22]} 2. Nf3 {[%emt 0:1:11]} d6 {[%emt 0:0:19]} 3. d4 {[%emt 0:4:16]} cxd4 {[%emt 0:0:11]} 4. Nxd4 {[%emt 0:0:11]} Nf6 {[%emt 0:0:9]} 5. f3 {[%emt 0:1:26]} a6 {[%emt 0:6:15]} 6. c4 {[%emt 0:1:1]} g6 {[%emt 0:4:8]} 7. Nc3 {[%emt 0:0:24]} Bg7 {[%emt 0:0:6]} 8. Be3 {[%emt 0:5:56]} Nc6 {[%emt 0:1:11]} 9. Qd2 {[%emt 0:14:18]} Bd7 {[%emt 0:0:20]} 10. Be2 {[%emt 0:2:21]} Rc8 {[%emt 0:12:34]} 11. O-O {[%emt 0:2:53]} O-O {[%emt 0:0:52]} 12. Rfd1 {[%emt 0:1:17]} Nxd4 {[%emt 0:11:41]} 13. Bxd4 {[%emt 0:0:13]} Bc6 {[%emt 0:0:6]} 14. b4 {[%emt 0:1:53]} Bd7 {[%emt 0:7:50]} 15. Rac1 {[%emt 0:16:29]} Be6 {[%emt 0:2:33]} 16. Na4 {[%emt 0:2:21]} Nd7 {[%emt 0:2:48]} 17. Be3 {[%emt 0:8:45]} Qc7 {[%emt 0:22:17]} 18. Nc3 {[%emt 0:23:43]} Qb8 {[%emt 0:14:21]} 19. Nd5 {[%emt 0:1:6]} Bxd5 {[%emt 0:1:38]} 20. Qxd5 {[%emt 0:1:55]} Rfd8 {[%emt 0:3:23]} 21. Kh1 {[%emt 0:3:23]} Qc7 {[%emt 0:3:12]} 22. Qd2 {[%emt 0:6:47]} b6 {[%emt 0:7:23]} 23. f4 {[%emt 0:4:53]} a5 {[%emt 0:3:29]} 24. a3 {[%emt 0:0:12]} axb4 {[%emt 0:0:30]} 25. axb4 {[%emt 0:0:2]} Ra8 {[%emt 0:0:7]} 26. Bf3 {[%emt 0:0:51]} Ra3 {[%emt 0:0:48]} 27. c5 {[%emt 0:1:37]} bxc5 {[%emt 0:2:10]} 28. bxc5 {[%emt 0:0:2]} Nf8 {[%emt 0:0:42]} 29. Bg1 {[%emt 0:4:5]} Qb8 {[%emt 0:1:52]} 30. c6 {[%emt 0:0:48]} Rc8 {[%emt 0:0:22]} 31. Rb1 {[%emt 0:0:32]} Rb3 {[%emt 0:0:40]} 32. Qc2 {[%emt 0:0:20]} Rb2 {[%emt 0:0:31]} 33. Rxb2 {[%emt 0:0:35]} Qxb2 {[%emt 0:0:1]} 34. Qxb2 {[%emt 0:0:33]} Bxb2 {[%emt 0:0:1]} 35. Rb1 {[%emt 0:0:23]} Bf6 {[%emt 0:1:14]} 36. Rb5 {[%emt 0:0:40]} e5 {[%emt 0:0:20]} 37. fxe5 {[%emt 0:0:23]} Bxe5 {[%emt 0:0:18]} 38. Rb6 {[%emt 0:0:12]} Ne6 {[%emt 0:1:4]} 39. Bg4 {[%emt 0:0:53]} Rc7 {[%emt 0:0:34]} 40. Rb8+ {[%emt 0:0:27]} Kg7 {[%emt 0:0:6]} 41. Bxe6 {[%emt 0:16:15]} Rxc6 {[%emt 0:0:6]} 42. Bd5 {[%emt 0:7:29]} Rc1 {[%emt 0:2:19]} 43. Rb4 {[%emt 0:0:19]} h5 {[%emt 0:3:24]} 44. Rc4 {[%emt 0:5:14]} Rb1 {[%emt 0:2:7]} 45. g3 {[%emt 0:0:39]} h4 {[%emt 0:0:6]} 46. gxh4 {[%emt 0:0:33]} f5 {[%emt 0:1:4]} 47. Rc7+ {[%emt 0:6:13]} Kh6 {[%emt 0:7:36]} 48. Kg2 {[%emt 0:1:19]} Rb2+ {[%emt 0:0:53]} 49. Kh3 {[%emt 0:1:9]} f4 {[%emt 0:1:35]} 50. Bg8 {[%emt 0:5:8]} g5 {[%emt 0:2:31]} 51. Rh7+ {[%emt 0:1:38]} Kg6 {[%emt 0:0:5]} 52. h5+ {[%emt 0:0:12]} Kf6 {[%emt 0:0:6]} 53. Rf7+ {[%emt 0:0:7]} Ke6 {[%emt 0:0:6]} 54. Rg7+ {[%emt 0:0:27]} Kf6 {[%emt 0:0:7]} 55. Rf7+ {[%emt 0:0:12]} Ke6 {[%emt 0:0:3]} 56. Rc7+ {[%emt 0:3:19]} Kf6 {[%emt 0:0:5]} 57. Bd5 {[%emt 0:0:21]} g4+ {[%emt 0:1:11]} 58. Kh4 {[%emt 0:0:12]} 1-0

[Event "57th Biel Festival MTO 2024"]
[White "Haugner,Jan"]
[Black "Boldoo,Erdenepurev"]
[Site "Biel"]
[Round "1.36"]
[Annotator "TA"]
[Result "0-1"]
[Date "2024.07.15"]
[WhiteElo "2072"]
[BlackElo "2385"]
[PlyCount "80"]
[TimeControl "60"]

{[%evp 9,80,9,3,13,4,-8,14,8,9,11,8,0,0,0,4,0,15,21,12,0,67,40,68,33,52,39,53,50,56,53,77,59,95,82,100,100,95,46,53,60,54,27,27,13,36,0,0,-56,-49,-49,-49,-49,-49,-49,-49,-49,0,-138,-140,-208,-206,-352,-336,-358,-347,-422,-411,-649,-424,-550,-552,-525,-531]} 1. e4 {[%emt 0:0:3]} c5 {[%emt 0:0:8]} 2. Nf3 {[%emt 0:0:5]} e6 {[%emt 0:0:3]} 3. d4 {[%emt 0:0:10]} cxd4 {[%emt 0:0:6]} 4. Nxd4 {[%emt 0:0:2]} Nc6 {[%emt 0:0:6]} 5. Bf4 {[%emt 0:0:12]} d6 {[%emt 0:2:27]} 6. Nxc6 {[%emt 0:0:4]} bxc6 {[%emt 0:0:4]} 7. Bd3 {[%emt 0:0:23]} e5 {[%emt 0:1:45]} 8. Be3 {[%emt 0:0:4] The position is equal.} Be7 {[%emt 0:0:53]} 9. O-O {[%emt 0:7:29]} Bg5 {[%emt 0:1:3]} 10. Qd2 {[%emt 0:2:59]} Bxe3 {[%emt 0:0:18]} 11. Qxe3 {[%emt 0:0:1]} Nf6 {[%emt 0:1:6]} 12. c4 {[%emt 0:1:47]} O-O {[%emt 0:2:7]} 13. Nc3 {[%emt 0:1:29]} Be6 {[%emt 0:3:12]} 14. Rfd1 {[%emt 0:6:17]} c5 {[%emt 0:6:55]} (14... Qb6 $11 )15. Qe2 {[%emt 0:9:18]} Qa5 {[%emt 0:2:42]} 16. a3 {[%emt 0:8:56]} Rab8 {[%emt 0:2:50]} 17. Rdb1 {[%emt 0:7:53]} Nd7 {[%emt 0:3:32] [#]} 18. b4 $1 {[%emt 0:9:58]} Qc7 {[%emt 0:1:1]} 19. b5 {[%emt 0:7:13]} Qa5 {[%emt 0:0:25]} 20. Nd1 {[%emt 0:5:9]} Nb6 {[%emt 0:1:36]} 21. Ne3 {[%emt 0:2:31]} a6 {[%emt 0:4:26] [#]} 22. a4 $1 {[%emt 0:17:56]} Ra8 {[%emt 0:5:13]} (22... Rfd8 23. h4 )23. Qe1 {[%emt 0:3:44]} (23. Qd1 $16 )Qxe1+ {[%emt 0:3:18]} 24. Rxe1 {[%emt 0:0:1]} a5 {[%emt 0:0:8]} 25. Kf1 {[%emt 0:5:28]} g6 {[%emt 0:0:10]} 26. g4 {[%emt 0:4:21]} Kg7 {[%emt 0:0:9]} 27. Ke2 {[%emt 0:0:35]} h5 {[%emt 0:0:11]} 28. h3 {[%emt 0:0:50]} ({White should try} 28. g5 $11 )hxg4 {[%emt 0:0:25]} 29. hxg4 {[%emt 0:0:8]} Rh8 {[%emt 0:0:10]} 30. Kd2 {[%emt 0:2:52]} Rh2 {[%emt 0:1:17]} 31. Rf1 {[%emt 0:0:57]} Kf6 {[%emt 0:0:33]} 32. Kc3 {[%emt 0:5:9]} Kg5 {[%emt 0:0:9]} (32... Rah8 $15 33. Be2 Kg5 )33. f3 {[%emt 0:0:17]} (33. Bc2 $11 {keeps the balance.} )Rah8 $17 {[%emt 0:2:16] Black is much more active.} 34. Bc2 {[%emt 0:0:56]} (34. Rfe1 $17 )Kf4 $19 {[%emt 0:4:56]} 35. Nd5+ {[%emt 0:1:14]} (35. Rae1 {was necessary.} )Bxd5 {[%emt 0:0:12]} 36. cxd5 {[%emt 0:0:25]} R8h3 {[%emt 0:0:50][%cal Oh2e2]} 37. Bd1 {[%emt 0:0:23]} Rg2 {[%emt 0:0:27]} 38. Ra3 {[%emt 0:1:9]} (38. Bc2 $142 )Rxg4 {[%emt 0:0:39] ...Rg2 is the strong threat. Black is clearly winning.} 39. Kc2 {[%emt 0:0:45]} Rg2+ {[%emt 0:0:10]} 40. Kc1 {[%emt 0:0:28]} Rhh2 {[%emt 0:0:21] Weighted Error Value: White=0.46/Black=0.22 (precise) .  Mistake:       	White=6     	Black=2      Inaccurate:     	White=4     	Black=3      OK:         	White=10    	Black=12     Best:        	---       	Black=3      Brilliant:      	White=1     	---} 0-1

[Event "57th Biel Festival MTO 2024"]
[White "Chinguun,Sumiya"]
[Black "Panda,Barnabas"]
[Site "Biel"]
[Round "1.37"]
[Annotator "RC"]
[Result "1-0"]
[Date "2024.07.15"]
[WhiteElo "2348"]
[BlackElo "2074"]
[PlyCount "63"]
[TimeControl "60"]

1. e4 {[%emt 0:0:2]} c5 {[%emt 0:0:12]} 2. Nc3 {[%emt 0:0:15]} Nc6 {[%emt 0:0:19]} 3. Bb5 {[%emt 0:0:6]} Nd4 {[%emt 0:0:23]} 4. Nf3 {[%emt 0:0:8]} g6 {[%emt 0:0:28]} 5. Nxd4 {[%emt 0:1:56]} cxd4 {[%emt 0:0:13]} 6. Ne2 {[%emt 0:0:16]} Bg7 {[%emt 0:1:23]} 7. O-O {[%emt 0:2:56]} e6 {[%emt 0:2:40]} 8. d3 {[%emt 0:2:0]} a6 {[%emt 0:4:42]} 9. Ba4 {[%emt 0:0:8]} Ne7 {[%emt 0:1:7]} 10. f3 {[%emt 0:17:21]} b5 {[%emt 0:12:22]} 11. Bb3 {[%emt 0:0:5]} O-O {[%emt 0:0:14]} 12. a4 {[%emt 0:6:49]} Bb7 {[%emt 0:4:48]} 13. Bf4 {[%emt 0:7:43]} d6 {[%emt 0:12:13]} 14. Qd2 {[%emt 0:2:20]} Qd7 {[%emt 0:4:49]} 15. Bh6 {[%emt 0:5:29]} e5 {[%emt 0:5:50]} 16. Ng3 {[%emt 0:0:59]} Kh8 {[%emt 0:25:10]} 17. Bxg7+ {[%emt 0:12:58]} Kxg7 {[%emt 0:0:12]} 18. Qg5 {[%emt 0:0:15]} Ng8 {[%emt 0:0:33]} 19. f4 {[%emt 0:0:32]} f6 {[%emt 0:3:38]} 20. Qh4 {[%emt 0:0:53]} Nh6 {[%emt 0:4:45]} 21. Rf3 {[%emt 0:14:42]} Qg4 {[%emt 0:3:9]} 22. Nf5+ {[%emt 0:4:7]} gxf5 {[%emt 0:1:41]} 23. Rg3 {[%emt 0:0:50]} exf4 {[%emt 0:0:8]} 24. Rxg4+ {[%emt 0:0:21]} fxg4 {[%emt 0:0:11]} 25. Qf2 {[%emt 0:1:23]} Nf7 {[%emt 0:6:20]} 26. Bxf7 {[%emt 0:3:30]} Rxf7 {[%emt 0:1:24]} 27. axb5 {[%emt 0:2:32]} axb5 {[%emt 0:0:28]} 28. Rxa8 {[%emt 0:0:10]} Bxa8 {[%emt 0:0:6]} 29. Qxf4 {[%emt 0:0:9]} h5 {[%emt 0:5:52]} 30. Qxd6 {[%emt 0:0:21]} Bb7 {[%emt 0:1:37]} 31. Qxd4 {[%emt 0:0:6]} Bc6 {[%emt 0:0:42]} 32. Qc5 {[%emt 0:0:8]} 1-0

[Event "57th Biel Festival MTO 2024"]
[White "Perreard,Nicolas"]
[Black "Dotzer,Lukas"]
[Site "Biel"]
[Round "1.38"]
[Annotator "TA"]
[Result "0-1"]
[Date "2024.07.15"]
[WhiteElo "2060"]
[BlackElo "2369"]
[PlyCount "90"]
[TimeControl "60"]

{[%evp 15,90,18,21,0,0,-20,-9,-22,-11,-9,-19,0,-9,-6,0,-27,-17,-25,-28,-27,-18,-21,-22,-35,-28,-29,-31,-31,-23,-27,-31,-26,-18,-23,-18,-17,-17,-17,-17,-37,-29,-53,-25,-56,-64,-59,-26,-23,-19,-40,0,0,0,0,69,-51,0,0,35,-14,-14,-14,-22,-26,-36,-53,0,0,0,0,37,10,8,11,50,-642,-625]} 1. d4 {[%emt 0:0:2]} Nf6 {[%emt 0:0:5]} 2. c4 {[%emt 0:0:15]} e6 {[%emt 0:0:7]} 3. Nf3 {[%emt 0:0:4]} d5 {[%emt 0:0:8]} 4. Nc3 {[%emt 0:0:4]} c6 {[%emt 0:0:7]} 5. e3 {[%emt 0:0:6]} Nbd7 {[%emt 0:0:9]} 6. Bd3 {[%emt 0:0:9]} dxc4 {[%emt 0:0:9]} 7. Bxc4 {[%emt 0:0:4]} b5 {[%emt 0:0:44]} 8. Be2 {[%emt 0:1:23]} Be7 {[%emt 0:4:59]} 9. e4 {[%emt 0:1:51]} b4 {[%emt 0:1:32]} 10. e5 {[%emt 0:0:5]} bxc3 {[%emt 0:0:8]} 11. exf6 {[%emt 0:0:4] The position is equal.} Bxf6 {[%emt 0:1:33]} 12. bxc3 {[%emt 0:0:8]} O-O {[%emt 0:6:19]} 13. O-O {[%emt 0:4:23]} c5 {[%emt 0:4:10]} 14. Rb1 {[%emt 0:2:45] Wards off Bb7} Qa5 {[%emt 0:17:24][%csl LRa2,LRc3]} 15. Qc2 {[%emt 0:4:51]} Ba6 {[%emt 0:3:6]} 16. Bxa6 {[%emt 0:1:9]} Qxa6 {[%emt 0:0:6]} 17. Ng5 {[%emt 0:1:26]} Bxg5 {[%emt 0:3:27]} 18. Bxg5 {[%emt 0:0:8]} cxd4 {[%emt 0:3:52]} 19. cxd4 {[%emt 0:0:8]} Rfc8 {[%emt 0:5:55]} 20. Qd2 {[%emt 0:0:19]} Nb6 {[%emt 0:10:55]} 21. Be7 {[%emt 0:1:6]} Nd5 {[%emt 0:14:17]} 22. Bc5 {[%emt 0:0:27]} Rab8 {[%emt 0:1:47]} 23. h3 {[%emt 0:5:48]} Rb7 {[%emt 0:2:44]} 24. Rb3 {[%emt 0:2:10]} Rxb3 {[%emt 0:3:5]} 25. axb3 {[%emt 0:0:5]} Rb8 {[%emt 0:2:28]} 26. Rb1 {[%emt 0:0:20]} Rb5 {[%emt 0:3:28]} 27. Qg5 {[%emt 0:4:0][%cal Rg5d8] [#]} h6 {[%emt 0:2:58]} 28. Qd8+ {[%emt 0:0:22]} Kh7 {[%emt 0:0:7]} 29. Qd7 {[%emt 0:0:25]} Rb7 {[%emt 0:2:24]} 30. Qc8 {[%emt 0:1:5]} Nf4 {[%emt 0:5:53][%cal Oa6d3] ...Qd3! is the strong threat.} 31. Kh2 {[%emt 0:3:58]} Qb5 {[%emt 0:2:7]} 32. Bd6 {[%emt 0:3:13]} Nd5 {[%emt 0:2:42]} 33. Qc2+ {[%emt 0:1:9]} g6 {[%emt 0:1:17]} 34. Qc8 {[%emt 0:0:35]} Rd7 {[%emt 0:3:7]} (34... Qb6 $11 35. Bg3 g5 )35. Bf8 {[%emt 0:4:18]} ({White should play} 35. Qf8 $14 Qb6 36. Be5 )Rc7 {[%emt 0:1:18]} (35... Qb7 $15 36. Qxb7 Rxb7 )36. Qd8 $11 {[%emt 0:0:49]} Qd3 {[%emt 0:2:49]} 37. Qh4 {[%emt 0:1:33]} h5 {[%emt 0:0:31] Active counter play!} (37... Qxb1 38. Qxh6+ Kg8 39. Qg7# )38. Ra1 {[%emt 0:2:5]} Qf5 {[%emt 0:0:55]} 39. Bd6 {[%emt 0:9:37]} (39. Ra2 {seems wilder.} Rc1 40. Bd6 Nc3 41. Ra5 )Rc2 {[%emt 0:0:27]} 40. Kg1 {[%emt 0:2:18]} Nc3 {[%emt 0:0:32]} ({Better is} 40... a6 $15 )41. Be5 {[%emt 0:52:52][%cal Of2f3]} a5 {[%emt 0:18:11]} 42. f3 {[%emt 0:0:0][%cal Oh4d8]} (42. Rxa5 Rc1+ 43. Kh2 Ne2 (43... Qb1 $2 44. Bf4 $19 )(43... Qb1 $2 44. Bf4 $19 ))Ne2+ {[%emt 0:24:16]} 43. Kh1 {[%emt 0:0:0][%cal Oh4d8] And now Qd8! would win.} Ra2 {[%emt 0:1:39]} 44. Rc1 {[%emt 0:0:0]} (44. Rxa2 $2 {is a self mate.} Qb1+ )Rd2 {[%emt 0:4:37] [#]} 45. Qd8 $2 {[%emt 0:0:0][%mdl 8192]} Qxe5 {[%emt 0:0:27] Weighted Error Value: White=0.20 (precise) /Black=0.13 (very precise) .  Loses game:     	White=1     	---        Mistake:       	White=2     	Black=3      Inaccurate:     	White=3     	Black=6      OK:         	White=18    	Black=17     Best:        	White=4     	Black=1} ({Worse is} 45... Nxc1 46. Qh8# )0-1

[Event "57th Biel Festival MTO 2024"]
[White "Rosen,Eric"]
[Black "Udipi,Kala Kishan"]
[Site "Biel"]
[Round "1.39"]
[Annotator "TA"]
[Result "1-0"]
[Date "2024.07.15"]
[WhiteElo "2361"]
[BlackElo "2051"]
[PlyCount "81"]
[TimeControl "60"]

{[%evp 9,81,5,21,8,21,0,-3,0,10,10,10,22,48,50,62,58,75,69,154,144,137,135,151,148,179,179,177,183,210,206,303,312,331,322,327,337,304,216,206,216,273,264,279,262,377,364,440,346,352,352,349,361,346,330,327,287,438,346,479,479,576,552,623,663,647,639,836,644,645,633,5277,4645,29994,29995]} 1. d4 {[%emt 0:0:10]} d5 {[%emt 0:0:7]} 2. Bf4 {[%emt 0:0:16]} Nf6 {[%emt 0:0:40]} 3. e3 {[%emt 0:0:12]} c5 {[%emt 0:0:32]} 4. Nf3 {[%emt 0:0:13]} e6 {[%emt 0:0:51]} 5. Nbd2 {[%emt 0:1:14]} Bd6 {[%emt 0:1:41]} 6. Bb5+ {[%emt 0:2:17]} Nc6 {[%emt 0:2:45]} 7. Bg3 {[%emt 0:2:59]} O-O {[%emt 0:0:55]} 8. c3 {[%emt 0:0:33] The position is equal.} a6 {[%emt 0:9:16]} 9. Bxc6 {[%emt 0:0:25]} bxc6 {[%emt 0:0:13]} 10. Qa4 {[%emt 0:0:6]} Bb7 {[%emt 0:12:39]} 11. Bxd6 {[%emt 0:0:38]} Qxd6 {[%emt 0:0:15]} 12. Qa3 {[%emt 0:0:5]} Nd7 {[%emt 0:5:51] Prevents Ne5} 13. Nb3 {[%emt 0:0:45] Black is on the road to losing.} e5 {[%emt 0:0:38] [#]} ({Better is} 13... Rfb8 $14 )14. Nxe5 $1 $16 {[%emt 0:9:29]} (14. dxc5 $6 Qg6 15. O-O Bc8 $11 )(14. Nxc5 $6 Nxc5 15. Qxc5 Qxc5 16. dxc5 f6 $16 )Nxe5 {[%emt 0:0:46]} 15. dxe5 {[%emt 0:0:22]} Qxe5 {[%emt 0:2:35]} 16. Qxc5 {[%emt 0:1:35]} f5 {[%emt 0:1:14]} 17. Na5 {[%emt 0:7:0]} Rab8 {[%emt 0:1:27]} 18. O-O {[%emt 0:4:37]} f4 {[%emt 0:1:9]} 19. exf4 {[%emt 0:2:15]} (19. Nxc6 Bxc6 20. Qxc6 fxe3 $11 )Rxf4 {[%emt 0:3:18]} (19... Qxf4 $142 20. Rae1 (20. Nxc6 Bxc6 21. Qxc6 Rxb2 $16 )Ba8 )20. Rae1 $18 {[%emt 0:4:6]} (20. Nxc6 $6 Bxc6 21. Qxc6 Rf6 $16 )Re4 {[%emt 0:2:37]} 21. Rxe4 {[%emt 0:3:18]} (21. Nxc6 $6 Bxc6 22. Rxe4 Qxe4 $18 )Qxe4 {[%emt 0:0:15]} 22. Qa7 {[%emt 0:2:47] Dodges Ba8} (22. Nxc6 Bxc6 23. Qxc6 Rxb2 24. Qc8+ (24. Qxa6 h6 $16 )Kf7 25. Qxa6 Qe7 )Qe5 {[%emt 0:0:53]} 23. Nxb7 {[%emt 0:0:55]} Qc7 {[%emt 0:0:11] [#] Prevents Na5} 24. Qxa6 {[%emt 0:0:38]} Rxb7 {[%emt 0:0:36][%mdl 4096] Endgame. KQR-KQR} (24... Qxb7 25. Qxb7 )25. Qe2 {[%emt 0:1:17][%cal Re2e8]} h6 {[%emt 0:2:29]} 26. Re1 {[%emt 0:3:48]} Kh7 {[%emt 0:1:28]} (26... Rb8 $142 27. h3 Kh8 )27. Qd3+ {[%emt 0:1:1]} Kg8 {[%emt 0:0:40]} 28. Re8+ {[%emt 0:4:46]} Kf7 {[%emt 0:0:13]} 29. Re2 {[%emt 0:0:37]} Qd7 {[%emt 0:2:3] Wards off Qf5+} 30. b3 {[%emt 0:2:48]} Rb8 {[%emt 0:1:43]} 31. Qe3 {[%emt 0:2:51] Hoping for Qf4+.} Rb7 {[%emt 0:2:13]} 32. h3 {[%emt 0:1:2]} Rc7 {[%emt 0:6:6]} (32... Kg8 {was necessary.} 33. Qe8+ Qxe8 34. Rxe8+ Kf7 )33. Qc5 {[%emt 0:2:23]} Rc8 {[%emt 0:1:1]} 34. a4 {[%emt 0:1:30][%cal Ba2a4,Ba4a5][%mdl 32]} Ra8 {[%emt 0:6:23]} 35. a5 {[%emt 0:1:36]} Rb8 {[%emt 0:2:21]} 36. b4 {[%emt 0:5:29]} Rb5 {[%emt 0:3:52]} 37. Qd4 {[%emt 0:1:2] Threatens to win with a6.} c5 {[%emt 0:0:58]} 38. bxc5 {[%emt 0:0:53]} Rxa5 {[%emt 0:1:34]} 39. c4 {[%emt 0:0:50][%cal Bc3c4,Bc4d5][%mdl 32]} Qc6 {[%emt 0:1:15]} 40. cxd5 {[%emt 0:0:48]} ({Worse is} 40. Qxd5+ Qxd5 41. cxd5 Rxc5 $11 )Qxc5 {[%emt 0:0:14]} 41. Qf4+ {[%emt 0:50:45] Weighted Error Value: White=0.19 (very precise) /Black=0.56.  Mistake:       	---       	Black=4      Inaccurate:     	---       	Black=2      OK:         	White=20    	Black=5      Best:        	White=1     	Black=1      Strong:       	White=1     	---} 1-0

[Event "57th Biel Festival MTO 2024"]
[White "Khulan,Enkhsaikhan"]
[Black "Hafiz,Arif Abdul"]
[Site "Biel"]
[Round "1.40"]
[Annotator "TA"]
[Result "0-1"]
[Date "2024.07.15"]
[WhiteElo "2063"]
[BlackElo "2367"]
[PlyCount "84"]
[TimeControl "60"]

{[%evp 24,84,8,16,15,14,14,35,14,11,12,8,14,6,19,0,0,2,0,0,37,0,8,0,0,0,0,0,0,0,0,-70,-50,-55,-62,-150,-158,-160,-85,-82,-47,-44,-32,-39,-29,-29,-27,-33,-15,-22,-8,-331,-323,-370,-370,-370,-370,-370,-370,-363,-337,-363,-347]} 1. d4 {[%emt 0:0:3]} Nf6 {[%emt 0:0:11]} 2. c4 {[%emt 0:0:7]} g6 {[%emt 0:0:4]} 3. Nc3 {[%emt 0:0:18]} d5 {[%emt 0:0:27]} 4. cxd5 {[%emt 0:1:14]} Nxd5 {[%emt 0:0:6]} 5. e4 {[%emt 0:0:24]} Nxc3 {[%emt 0:0:5]} 6. bxc3 {[%emt 0:0:10]} Bg7 {[%emt 0:0:3]} 7. Nf3 {[%emt 0:0:49]} c5 {[%emt 0:1:4]} 8. Bb5+ {[%emt 0:1:27]} Bd7 {[%emt 0:4:32]} 9. Bxd7+ {[%emt 0:1:19]} Qxd7 {[%emt 0:2:26]} 10. Rb1 {[%emt 0:4:30]} O-O {[%emt 0:10:16]} 11. O-O {[%emt 0:0:55]} Rd8 {[%emt 0:17:58]} 12. Be3 {[%emt 0:4:7]} cxd4 {[%emt 0:3:3]} 13. cxd4 {[%emt 0:0:35]} Nc6 {[%emt 0:0:23]} 14. d5 {[%emt 0:3:56]} Ne5 {[%emt 0:0:24]} 15. Nxe5 {[%emt 0:0:57]} Bxe5 {[%emt 0:0:2] White is slightly better.} 16. Qb3 {[%emt 0:1:12]} b6 {[%emt 0:1:54]} 17. Rbc1 {[%emt 0:1:1]} Rac8 {[%emt 0:0:54]} 18. a4 {[%emt 0:3:20]} e6 {[%emt 0:24:33]} 19. dxe6 {[%emt 0:4:40]} Qxe6 {[%emt 0:2:37]} 20. Qxe6 {[%emt 0:1:17]} fxe6 {[%emt 0:0:2]} 21. f4 {[%emt 0:1:20]} Bd6 {[%emt 0:14:28]} 22. Kf2 {[%emt 0:1:17]} Kf7 {[%emt 0:0:27]} 23. Kf3 {[%emt 0:0:59]} Ba3 {[%emt 0:0:41]} 24. Rxc8 {[%emt 0:2:11]} Rxc8 $11 {[%emt 0:0:2][%mdl 4096] Endgame. KRB-KRB} 25. Rd1 {[%emt 0:2:38]} Ke8 {[%emt 0:3:8] Inhibits Rd7.} 26. Rd3 {[%emt 0:2:17]} Be7 {[%emt 0:0:5]} 27. f5 {[%emt 0:3:4]} exf5 $15 {[%emt 0:3:40]} 28. exf5 {[%emt 0:0:45]} gxf5 {[%emt 0:0:7]} 29. a5 {[%emt 0:11:15]} bxa5 $17 {[%emt 0:4:22]} 30. Rd5 {[%emt 0:0:27]} Rc3 {[%emt 0:5:16]} (30... Bb4 $142 {Threatens to win with ...a4.} 31. Re5+ Kd8 32. Rd5+ Ke7 33. Rxf5 a4 34. Bxa7 a3 )31. Rxf5 {[%emt 0:1:17]} (31. Rxa5 Bg5 32. Rxa7 Rxe3+ $19 )Bd8 {[%emt 0:0:49]} 32. Ke4 {[%emt 0:0:56]} Bb6 {[%emt 0:0:8]} 33. Bd2 {[%emt 0:1:5]} Rc4+ {[%emt 0:2:13]} 34. Kd3 {[%emt 0:3:57]} Rd4+ {[%emt 0:5:16]} 35. Kc2 {[%emt 0:3:14]} a4 {[%emt 0:0:53]} 36. Rh5 {[%emt 0:2:11]} a3 {[%emt 0:1:49]} 37. Rh3 $2 {[%emt 0:5:4][%mdl 8192] This costs White the game.} (37. Bc3 $1 $11 {and White is okay.} Re4 38. Rxh7 )Rc4+ $19 {[%emt 0:0:57]} 38. Kb3 {[%emt 0:1:45] [#]} a2 $1 {[%emt 0:0:21][%mdl 512]} 39. Kxa2 {[%emt 0:3:34][%cal Oa2b3]} Rc2+ {[%emt 0:0:4]} 40. Kb3 {[%emt 0:0:12]} Rxd2 {[%emt 0:0:4]} 41. Rxh7 {[%emt 0:50:21]} Rxg2 {[%emt 0:50:7]} 42. h4 {[%emt 0:0:9]} Kf8 {[%emt 0:0:11] Weighted Error Value: White=0.33/Black=0.08 (flawless) .  Loses game:     	White=1     	---        Mistake:       	White=2     	Black=1      Inaccurate:     	White=1     	Black=2      OK:         	White=13    	Black=11     Best:        	White=2     	Black=3      Brilliant:      	---       	Black=1} 0-1